Workbook

Sheet Sheet1
A1: Item | B1: SC/Li | C1: Description | D1: Unit | E1: Scheduled Quantity | F1: Rate | G1: Amount (excluding VAT)
C2: AREA-A: REGIONS 1 AND 2
C4: SERIES 0 : GENERAL
C5: SECTION 001 : GENERAL REQUIREMENTS
C6: AND CHARGES
A8: B001.01 | C8: Preliminary and general charges
C9: .01 Fixed charges | D9: month/per project | E9: 36
A10: B001.01 | C10: .02 Time-related charges | D10: month/per project | E10: 36
A11: B001.01 | C11: .03 The Contractor’s establishment on site | D11: no | E11: 10
A13: B001.02 | C13: Location of existing services by locaters (detecting machine) | D13: m | E13: 32,000
A15: B001.03 | B15: Li | C15: Excavate by hand to expose existing
C16: services and backfill (LI) | D16: per inspection hole | E16: 2,000
A18: 001.04 | C18: Compliance with the Occupational Health
C19: and Safety Act and applicable regulations
C20: .01 Provision of a Health and Safety plan | D20: lump Sum/per project | E20: 3
A21: B001.04 | C21: .02 Provision of a Health and Safety file | D21: lump Sum/per project | E21: 3
A22: B001.04 | C22: .03 Provision of construction supervisors | D22: per month/ per project | E22: 36
A23: B001.04 | C23: .04 Provision of a safety officer (fullpart time) | D23: per month/ per project | E23: 36
A24: 00.1.04 | C24: .05 Health and Safety training | D24: lump Sum/per project | E24: 3
A25: 00.1.04 | C25: 0.6 Provision of personal protective clothing and equipment | D25: lump Sum/per project | E25: 3
A26: 00.1.04 | C26: 0.7 Provision of safety fences, signs and barricades | D26: lump Sum/per project | E26: 3
A27: B001.04 | C27: .08 Implementation of OHS plan | D27: per month/ per project | E27: 72
A28: B001.05 | C28: Community Liaison Officer (CLO) | D28: per month/ per project | E28: 72 | F28: R16,928.00 | G28: =F28*E28 -> R1,218,816.00
A30: B001.06 | C30: Compliance with Environment Management Plan | D30: per month/ per project | E30: 36
A32: B001.07 | C32: Provision for administration of local contractors | D32: lump Sum/per project | E32: 3
A34: B001.08 | C34: Training of Targeted Labour and local Smme | D34: lump Sum/per project | E34: 3
A36: B001.09 | B36: SC | C36: Appointment of Local Security Company | D36: Per month/ per site | E36: 72
A42: TOTAL CARRIED TO NEXT PAGE
A43: Item | B43: SC/Li | C43: Description | D43: Unit | E43: Scheduled Quantity | F43: Rate | G43: Amount (excluding VAT)
C44: Carried over from Series 0: General:
A46: 001.10 | C46: Day works
C47: .01 Provision of skilled, semi skilled and unskilled for day works
C48: .01 Qualified Artisan | D48: hr | E48: 900
C49: .02 Semi-skilled labourer | D49: hr | E49: 3000
C50: .03 Labourer | D50: hr | E50: 9000
C52: .02 Plant Hire (use of plant already established on site for day works)
C53: .01 Tipper Truck (10 ton) | D53: hr | E53: 100
C54: .02 Flatbed truck (5 ton) | D54: hr | E54: 100
C55: .03 Light delivery vehicle | D55: hr | E55: 100
C56: .04 Water Tanker (large) | D56: hr | E56: 100
C57: .05 Rammer | D57: hr | E57: 100
C58: .06 TLB | D58: hr | E58: 1000
C59: .07 Butt welding machine | D59: hr | E59: 500
A61: B001.11 | B61: SC | C61: Print, supply, distributions and removal of water interruptions notice colour printed
C62: .01 Color printed on correx | D62: m² | E62: 500
C63: .02 A5 flyers | D63: each | E63: 5000
A111: TOTAL CARRIED TO SUMMARY
A112: Item | B112: SC/Li | C112: Description | D112: Unit | E112: Scheduled Quantity | F112: Rate | G112: Amount
A113: B001.12 | C113: PENALTIES TO APPLY
C115: .01 Where incorrect water meter data has been submitted to CoT | D115: Per incorrect job card | F115: - R500.00
C116: .02 The late completion of work | D116: Per day | F116: - R5,000.00
C117: .03 Non-conforming in terms of the Construction Regulations
C118: .01 Hazardous chemical/oil spill and/or dumping | D118: per incident | F118: - R10 000.00
C120: .02 Damage to cultural and historical sites. | D120: per incident | F120: - R5 000.00
C121: .03 Unauthorised blasting activities | D121: per incident | F121: - R5 000.00
C122: .04 Transportation of workers in an unsecure vehicle (transporting tools, equipment and material) | D122: per incident | F122: - R5 000.00
C123: .05 Insufficient Road signs or Unavailability of flag personnel or Improper road signs layout | D123: per incident | F123: - R5 000.00
C124: .06 No OHS Officer appointed by the contractor | D124: per incident | F124: R 10 000 + work stoppage
C125: .07 Failure to correct OHS file notices within 7 days | D125: per incident | F125: - R 5 000.00
C126: .08 Littering on site | D126: per incident | F126: - R1,000.00
C127: .09 Lighting of illegal fires on site | D127: per incident | F127: - R1,000.00
C128: .10 Persistent or un-repaired fuel and oil leaks | D128: per incident | F128: - R1,000.00
C129: .11 Dumping of material in side drains | D129: per incident | F129: - R1,000.00
C130: .12 Possession or use of intoxicating substances on site | D130: per incident | F130: - R1,000.00
C131: .13 Any vehicles being driven in excess of | D131: per incident | F131: - R1,000.00
C132: designated speed limits
C133: .14 Urination and defecation anywhere except in | D133: per incident | F133: - R1,000.00
C134: designated areas
C135: .15 Failure to issue PPE to Employees | D135: per incident | F135: - R5,000.00
C136: .16 Non usage of PPE issued | D136: per incident | F136: - R500.00
C137: .17 All unsafe/ practices on site e.g.;- | D137: per incident | F137: - R500.00
C138: • Boarding on/off moving vehicle or plant.
C139: • Talking with a cell phone while operating a plant
C140: • Smoking near hazardous chemicals
C141: .04 Unnecessary damage or unauthorised removal of trees | D141: per tree | F141: -R 3,000.00
C142: Late submission of monthly progress reports. | D142: per month | F142: -R 3,000.00
C143: Late submission of monthly Payment Certificate and all supporting documents, outside the agreed window period for submission. | D143: per month | F143: -R 5,000.00
A160: TOTAL CARRIED TO SUMMARY
A161: Item | B161: SC/Li | C161: Description | D161: Unit | E161: Scheduled Quantity | F161: Rate | G161: Amount (excluding VAT)
C163: SERIES 0 : GENERAL
C165: SECTION 002: ENGINEER'S ACCOMMODATION
A167: B102.01 | C167: Services
A169: B102 | C169: .01 Services for offices and laboratories | D169: per month/ per project | E169: 36
C170: .02 Services for cooking and ablution facilities on Site for the Engineer's Site staff | D170: per month/ per project | E170: 36
C172: .02 Treatment and maintenance of areas surrounding offices and laboratories | D172: per month/ per project | E172: 36
C174: .03 Office and Laboratory accomodation | D174: per month/ per project | E174: 36
C176: .04 Provision of survey equipments and assistants | D176: per month/ per project | E176: 36
A224: TOTAL CARRIED TO SUMMARY | G224: =SUM(G169:G223) -> R0.00
A225: Item | B225: SC/Li | C225: Description | D225: Unit | E225: Scheduled Quantity | F225: Rate | G225: Amount (excluding VAT)
C227: SERIES 1: ANCILLARY WORK
C229: SECTION 101: SITE CLEARING AND GRUBBING
A231: 101.01 | C231: Clearing and grubbing
B232: SC/Li | C232: .01 Areas | D232: m² | E232: 1,000
A233: B101.01 | B233: SC/Li | C233: .02 Strips 3m wide | D233: m | E233: 10,000
A235: 101.02 | C235: Cutting and removing large trees with a girth:
B236: SC/Li | C236: .01 Exceeding 1m and up to and including 2m (LI) | D236: No | E236: 5
B237: SC/Li | C237: .02 Exceeding 2m and up to and including 3m (LI) | D237: No | E237: 5
A239: 101.03 | C239: Grubbing and the removal of the stumps and
C240: roots of large trees with a girth:
B241: SC/Li | C241: .01 Exceeding 1m and up to and including 2m | D241: No | E241: 5
B242: SC/Li | C242: .02 Exceeding 2m and up to and including 3m | D242: No | E242: 5
A244: 101.04 | C244: Reclearing areas (only on the written instructions of the Engineer)
C245: .01 Strips 3m wide | D245: m | E245: 603
A247: 101.05 | C247: Removal and Disposal of specific elements
C248: .02 Concrete or brick elements (reinforced or unreinforced) | D248: m³ | E248: 20
C249: .02.01 Demolition of existing floor slabs | D249: m³ | E249: 20
C250: .02.02 Block Paved driveways and walkways | D250: m³ | E250: 20
A294: TOTAL CARRIED TO SUMMARY | G294: =SUM(G232:G293) -> R0.00
A295: Item | B295: SC/Li | C295: Description | D295: Unit | E295: Scheduled Quantity | F295: Rate | G295: Amount (excluding VAT)
C297: SERIES 1: ANCILLARY WORK
C299: SECTION 102: ACCOMMODATION TRAFFIC
A301: 102.10 | C301: Provision of temporary fencing and gates
B302: SC | C302: .01 Temporary fencing | D302: m | E302: 1,000
B303: SC | C303: .02 Temporary gates | D303: No | E303: 5
A306: 102.12 | C306: Provision of temporary bridges for
C307: maintaining access to properties
C308: .01 Temporary pedestrian bridges | D308: No | E308: 10
C309: .02 Temporary vehicular bridges | D309: No | E309: 10
A311: 102.13 | C311: Moving of temporary bridges to and their
C312: re-erection in entirely new positions
C313: .01 Temporary pedestrian bridges | D313: No | E313: 50
C314: .02 Temporary vehicular bridges | D314: No | E314: 50
A316: B102.14 | C316: Temporary traffic-control facilities
B317: Li | C317: .01 Flagmen | D317: per month/ per project | E317: 36
C318: .02 Portable STOP and GO signs | D318: No | E318: 20
C319: .03 Amber flicker lights | D319: No | E319: 20
C320: .04 Road signs, TR-series, 1200mm in
C321: diameter or 900 x 675mm if rectangular | D321: No | E321: 50
C322: .05 Road signs, TW-series, 1 524mm sides | D322: No | E322: 50
C323: .06 Road signs, TG-series | D323: m² | E323: 30
C324: .07 Danger plates and delineators | D324: No | E324: 50
C325: .09 Traffic cones | D325: lump sum / per project | E325: 4
C326: .10 Plastic New Jersey Barrier | D326: No | E326: 100
A365: TOTAL CARRIED TO SUMMARY
A366: Item | B366: SC/Li | C366: Description | D366: Unit | E366: Scheduled Quantity | F366: Rate | G366: Amount (excluding VAT)
C368: SERIES 1: ANCILLARY WORK
A370: 103 | C370: SECTION 103: OVERHAUL
A372: 104.01 | C372: Overhaul on material hauled outside the defined free-haul boundaries | D372: m³km | E372: 32,706
A437: TOTAL CARRIED TO SUMMARY
A438: Item | B438: SC/Li | C438: Description | D438: Unit | E438: Scheduled Quantity | F438: Rate | G438: Amount (excluding VAT)
C440: SERIES 1: ANCILLARY WORK
C442: SECTION 104: LANDSCAPING AND GRASSING
A444: 104.01 | C444: Trimming
C445: .01 Machine trimming | D445: m² | E445: 20,000
A446: B104.01 | B446: Li | C446: .02 Hand trimming | D446: m² | E446: 60,000
A448: 104.03 | C448: Preparing areas for grassing and ground covers
C449: .02 Topsoiling on the Site with -
C450: .01 topsoil obtained from the Site or
C451: borrow areas provided by Employer | D451: m³ | E451: 50
C452: .02 topsoil provided by the Contractor
C453: from other sources (including all haul) | D453: m³ | E453: 10,000
A454: 104.03 | C454: .05 Stockpiling of topsoil | D454: m³ | E454: 10,000
A456: 104.08 | C456: Extra work for landscaping | D456: m² | E456: 6000
A510: TOTAL CARRIED TO SUMMARY
A511: Item | B511: SC/Li | C511: Description | D511: Unit | E511: Scheduled Quantity | F511: Rate | G511: Amount (excluding VAT)
C513: SERIES 1: ANCILLARY WORK
A515: 105 | C515: SECTION 105: FENCING
A517: 105.01 | C517: Supply and erection of new fencing material
B519: (Li) | C519: .01.01 Concrete palisade fence complete as detailed on CoT standard detail 7151-BW112. | D519: m | E519: 40
A521: 105.02 | C521: New gates
B523: (Li) | C523: .01 Double leaf gate as detailed on CoT standard detail 7151-BW112, 5m wide , 2.4m high. complete with electrification and connectors to suit exisitng electrified fence. | D523: No | E523: 1
C525: .02 Security - 1.8m hign diamond mesh fence complete with 500mm flat rap barbed wire | D525: m | E525: 35
A527: 105.03 | C527: Moving of existing fences and gates
B529: Li | C529: .01 Fences
C531: .01.01 Ordinary fences | D531: m | E531: 1,000
B533: Li | C533: .01.02 Security fences (including wrought iron and concrete palisade fences) | D533: m | E533: 250
C535: .01.03 All types of brick wall including plaster walls | D535: m | E535: 250
C537: .01.04 All types of concrete walls | D537: m | E537: 250
B539: Li | C539: .02 Gates | D539: No | E539: 50
A541: 105.04 | B541: Li | C541: Dismantling of existing fences | D541: m | E541: 1,000
A543: 105.05 | C543: The drilling and blasting of holes for posts and anchors | D543: No | E543: 25
A545: 105.06 | C545: Provision of temporary fencing
B547: Li | C547: .01 Ordinary fences | D547: m | E547: 1,000
B549: Li | C549: .02 Security fences | D549: m | E549: 750
B551: Li | C551: .03 Diamond mesh | D551: m2 | E551: 500
A553: 105.07 | C553: Ring bolts for anchoring fencing to structures | D553: No. | E553: 50
A575: TOTAL CARRIED TO SUMMARY
A576: Item | B576: SC/Li | C576: Description | D576: Unit | E576: Scheduled Quantity | F576: Rate | G576: Amount (excluding VAT)
C577: SERIES 2: EARTHWORKS
C579: SECTION 202: TRENCHING
A581: 202.01 | C581: Trench excavations
C582: .01 Up to 1,0 m wide
C583: .01 up to 2,0 m deep | D583: m³ | E583: 28,000
C584: .02 over 2,0 m deep | D584: m³ | E584: 2,000
C586: .02 Over 1.0m and up to 2,0 m wide
C587: .01 Over 1.0m up and to 1,5 m deep | D587: m³ | E587: 5,624
C588: .02 Over 1.5m up and to 2,0 m deep | D588: m³ | E588: 28,000
C589: .03 Over 2.0m up and to 2,5 m deep | D589: m³ | E589: 2,000
C590: .04 Over 2.5m up and to 3,0 m deep | D590: m³ | E590: 364
A592: 202.02 | C592: Extra over items 202.01, 202.03 and 202.04 for excavating in
C593: .02 hard material | D593: m³ | E593: 10,000
A595: B202.03 | C595: Excavations outside the normal trench profile | D595: m³ | E595: 2,000
A597: 202.04 | B597: Li | C597: Hand excavations Extra-over item 202.01 | D597: m³ | E597: 20,000
A599: B202.17 | B599: Li | C599: Hand excavation for trenches inside erven.
C600: Trenches 500 mm wide and 600 mm deep. | D600: m³ | E600: 500
A602: 202.06 | B602: Li | C602: The backfilling of trenches with material obtained
C603: from excavations (excluding backfill around the pipe barrel) | D603: m³ | E603: 17,000
A605: B202.07 | C605: Extra over items 202.06 and 202.13 for using
C606: backfill material obtained
C607: .01 from borrow areas | D607: m³ | E607: 1,000
... 1250 more rows
